fUSD/lending_fUSD_20260129
["ID","MTS","AMOUNT","RATE_DAILY","PERIOD"]
[403933399,1769683844926,-3626.64171697,0.00021078,2]
[403933400,1769683844935,-1502.45495241,0.00021168,2]
[403933401,1769683844944,-500.21641587,0.00021179,2]
[403933402,1769683844953,-150.0,0.00021179,2]
[403933403,1769683844966,-3292.0,0.0002118,2]
[403933404,1769683844975,-334.5472959,0.00021284,2]
[403933405,1769683844984,-59882.70163603,0.00021333,2]
[403933406,1769683844994,-194.72792766,0.00021559,2]
[403933407,1769683845005,-952.63336648,0.00021559,2]
[403933408,1769683845016,-151.0,0.00021559,2]
[403933409,1769683845026,-233.51889341,0.00021559,2]
[403933410,1769683845039,-155.0,0.00021598,2]
[403933411,1769683845049,-300.0,0.00021727,2]
[403933412,1769683845058,-504.07,0.00021728,2]
[403933413,1769683845067,-195.9669517,0.00021814,2]
[403933414,1769683845077,-166.66,0.00021859,2]
[403933415,1769683845086,-532.2031972,0.00022051,2]
[403933416,1769683845094,-712.04,0.000221,7]
[403933417,1769683845103,-201.93286099,0.00022107,2]
[403933418,1769683845112,-987.88080104,0.00022107,2]
[403933419,1769683845122,-151.0,0.00022107,2]
[403933420,1769683845131,-164.17468345,0.00022107,2]
[403933421,1769683845140,-741.45001561,0.00022144,2]
[403933422,1769683845150,-268.8313425,0.00022274,2]
[403933423,1769683845159,-250.94,0.00022287,2]
[403933424,1769683845168,-159.1444277,0.00022288,2]
[403933425,1769683845178,-2303.4,0.000225,2]
[403933426,1769683845187,-59882.70163603,0.00022561,2]
[403933427,1769683845197,-346.92554585,0.00022653,2]
[403933428,1769683845206,-599.60298507,0.00022654,2]
[403933429,1769683845215,-747.8093786,0.00022654,2]
[403933430,1769683845225,-209.40437684,0.00022655,2]
[403933431,1769683845235,-1024.43239068,0.00022655,2]
[403933432,1769683845245,-151.0,0.00022655,2]
[403933433,1769683845254,-525.83,0.00022666,2]
[403933434,1769683845263,-500.0,0.00022704,2]
[403933435,1769683845272,-1071.0,0.00022738,2]
[403933436,1769683845282,-4228.21,0.0002274,2]
[403933437,1769683845301,-1152.0,0.00022812,2]
[403933438,1769683845311,-166.66,0.00022943,2]
[403933439,1769683845321,-4933.95418225,0.00022957,2]
[403933440,1769683845330,-56246.34582486,0.00022966,2]
[403933441,1769683845340,-1000.0,0.00023027,2]
[403933442,1769683845349,-217.15233878,0.00023203,2]
[403933443,1769683845360,-1062.33638913,0.00023203,2]
[403933444,1769683845370,-151.0,0.00023203,2]
[403933445,1769683845380,-4609.0,0.00023274,2]
[403933446,1769683845390,-59295.5352,0.00023336,7]
[403933447,1769683845399,-504.07,0.00023703,2]
[403933448,1769683845409,-615.0,0.00023707,2]
[403933449,1769683845420,-3483.578,0.00023707,2]
[403933450,1769683845431,-1334.0,0.00023707,2]
[403933451,1769683845441,-1270.0,0.00023707,2]
[403933452,1769683845451,-184.0,0.00023707,2]
[403933453,1769683845460,-685.175,0.00023707,2]
[403933454,1769683845470,-975.181,0.00023707,2]
[403933455,1769683845479,-225.18697532,0.00023751,2]
[403933456,1769683845489,-1101.64283553,0.00023751,2]
[403933457,1769683845498,-151.0,0.00023751,2]
[403933458,1769683845508,-59882.70163603,0.0002379,2]
[403933459,1769683845518,-412.87,0.00023795,2]
[403933460,1769683845527,-210.83,0.00023801,2]
[403933461,1769683845537,-195.9669517,0.00023868,2]
[403933462,1769683845548,-228.39138238,0.00023982,2]
[403933463,1769683845558,-280.34589968,0.00023982,2]
[403933464,1769683845567,-359.76179104,0.00024022,2]
[403933465,1769683845577,-525.83,0.00024036,2]
[403933466,1769683845586,-197.27,0.00024095,2]
[403933467,1769683845595,-532.2031972,0.0002413,2]
[403933468,1769683845605,-712.04,0.000242,7]
[403933469,1769683845615,-932.96515428,0.00024221,2]
[403933470,1769683845626,-233.51889341,0.00024299,2]
[403933471,1769683845635,-1142.40362045,0.00024299,2]
[403933472,1769683845645,-151.0,0.00024299,2]
[403933473,1769683845654,-167.77937182,0.0002465,2]
[403933474,1769683845665,-150.0,0.00024658,2]
[403933475,1769683845674,-159.1444277,0.00024764,2]
[403933476,1769683845684,-300.0,0.00024799,10]
[403933477,1769683845693,-300.0,0.00024799,10]
[403933478,1769683845702,-666.0,0.00024799,2]
[403933479,1769683845712,-83364.5299475,0.000248,2]
[403933480,1769683845721,-242.15909246,0.00024847,2]
[403933481,1769683845730,-1184.6725544,0.00024847,2]
[403933482,1769683845740,-151.0,0.00024847,2]
[403933483,1769683845749,-500.0,0.00024899,2]
[403933484,1769683845758,-1011.04,0.00024899,2]
[403933485,1769683845767,-300.0,0.00024899,10]
[403933486,1769683845777,-300.0,0.00024899,10]
[403933487,1769683845786,-666.0,0.00024899,2]
[403933488,1769683845795,-152917.465124,0.000249,2]
[403933489,1769683845804,-335.0,0.00024942,2]
[403933490,1769683845814,-300.0,0.00024999,10]
[403933491,1769683845827,-316.1231749,0.00024999,10]
[403933492,1769683845837,-666.0,0.00024999,2]
[403933493,1769683845848,-1112.66174117,0.00025,2]
[403933494,1769683845857,-207.29012554,0.00025,2]
[403933495,1769683845867,-1782.84968769,0.00025,2]
[403933496,1769683845876,-487.75949502,0.00025,2]
[403933497,1769683845886,-540.0,0.00025,2]
[403933498,1769683845896,-610.25465192,0.00025,2]
[403933499,1769683845904,-3041.05450911,0.00025,2]
[403933500,1769683845913,-7117.9564284,0.00025,2]
[403933501,1769683845922,-1063.46702916,0.00025,2]
[403933502,1769683845931,-167.14472561,0.00025,2]
[403933503,1769683845941,-300.0,0.00025017,10]
[403933504,1769683845950,-666.0,0.00025017,2]
[403933506,1769683845962,-59882.70163603,0.00025018,2]
[403933508,1769683845972,-1071.0,0.00025021,2]
[403933510,1769683845981,-177.0,0.00025147,2]
[403933512,1769683845991,-177.0,0.00025147,2]
[403933514,1769683846003,-177.0,0.00025304,2]
[403933515,1769683846013,-177.0,0.00025352,2]
[403933516,1769683846022,-300.0,0.00025389,10]
[403933517,1769683846031,-666.0,0.00025389,2]
[403933518,1769683846041,-49475.56691733,0.0002539,2]
[403933519,1769683846051,-373.07297731,0.00025391,2]
[403933520,1769683846060,-621.78829552,0.00025393,2]
[403933521,1769683846070,-775.47832561,0.00025393,2]
[403933522,1769683846080,-251.11897888,0.00025395,2]
[403933524,1769683846089,-1228.50543892,0.00025395,2]
[403933526,1769683846099,-151.0,0.00025395,2]
[403933528,1769683846109,-177.0,0.00025496,2]
[403933531,1769683846119,-151.0,0.00025496,7]
[403933533,1769683846129,-300.0,0.00025498,10]
[403933534,1769683846139,-666.0,0.00025498,2]
[403933535,1769683846148,-56246.34582486,0.00025499,2]
[403933536,1769683846565,-2303.4,0.000255,2]
[403933537,1769683846590,-500.0,0.00025507,2]
[403933538,1769683846599,-6453.0,0.00025575,2]
[403933539,1769683846609,-1000.0,0.00025585,2]
[403933540,1769683846618,-177.0,0.00025643,2]
[403933541,1769683846627,-177.0,0.00025705,2]
[403933542,1769683846636,-298.874072,0.00025943,2]
[403933543,1769683846646,-177.0,0.00025968,2]
[403933544,1769683846657,-168.0,0.00025975,2]
[403933545,1769683846666,-177.0,0.00025976,2]
[403933546,1769683846676,-600.25616309,0.0002599,2]
[403933547,1769683846685,-4517.97895805,0.00026,2]
[403933548,1769683846695,-216.25400735,0.00026,2]
[403933549,1769683846703,-3346.45321382,0.00026003,2]
[403933550,1769683846713,-177.0,0.0002601,2]
[403933551,1769683846722,-177.0,0.0002623,2]
[403933552,1769683846732,-300.0,0.00026246,10]
[403933553,1769683846741,-666.0,0.00026246,2]
[403933554,1769683846750,-59882.70163603,0.00026247,2]
[403933555,1769683846760,-4259.88585425,0.000263,2]
[403933556,1769683846769,-712.04,0.000263,7]
[403933557,1769683846778,-177.0,0.00026331,2]
[403933558,1769683846787,-741.45001561,0.00026389,2]
[403933559,1769683846796,-300.0,0.00026399,10]
[403933560,1769683846806,-700.20467342,0.00026399,2]
[403933561,1769683846815,-27443.46044534,0.000264,2]
[403933562,1769683846826,-168.0,0.0002657,2]
[403933563,1769683846835,-177.0,0.00026576,2]
[403933564,1769683846845,-1848.57,0.00026591,2]
[403933565,1769683846857,-15408.91,0.00026591,2]
[403933566,1769683846866,-19999.99,0.00026591,2]
[403933567,1769683846876,-177.0,0.00026611,2]
[403933568,1769683846885,-597.54129764,0.00026706,2]
[403933569,1769683846894,-1011.04,0.00026706,2]
[403933570,1769683846903,-615.0,0.00026707,2]
[403933571,1769683846912,-3478.0,0.00026707,2]
[403933572,1769683846921,-1334.0,0.00026707,2]
[403933573,1769683846931,-567.0,0.00026707,2]
[403933574,1769683846940,-386.87667747,0.0002676,2]
[403933575,1769683846949,-4533.0,0.00026869,2]
[403933576,1769683846958,-250.0,0.00027,2]
[403933577,1769683846972,-1033.38538651,0.00027,2]
[403933578,1769683846981,-530.0,0.00027,2]
[403933579,1769683846991,-275.24,0.00027057,2]
[403933580,1769683847000,-177.0,0.00027112,2]
[403933581,1769683847011,-177.0,0.00027159,2]
[403933582,1769683847020,-2303.4,0.000272,2]
[403933583,1769683847029,-2120.55,0.0002724,2]
[403933584,1769683847042,-177.0,0.0002724,2]
[403933585,1769683847052,-159.1444277,0.00027241,2]
[403933586,1769683847062,-177.0,0.00027272,7]
[403933587,1769683847071,-4533.0,0.00027282,7]
[403933588,1769683847081,-177.0,0.00027297,2]
[403933589,1769683847090,-1071.0,0.00027304,2]
[403933590,1769683847100,-250.93252424,0.00027305,2]
[403933591,1769683847109,-210.83,0.00027336,2]
[403933592,1769683847119,-177.0,0.0002734,2]
[403933593,1769683847129,-4107.43797247,0.0002739,2]
[403933594,1769683847139,-8113.25980808,0.0002739,2]
[403933595,1769683847148,-750.0,0.00027397,20]
[403933596,1769683847158,-275.24,0.00027407,2]
[403933597,1769683847167,-59882.70163603,0.00027475,2]
[403933598,1769683847177,-177.0,0.00027575,2]
[403933599,1769683847186,-275.24,0.00027758,2]
[403933600,1769683847195,-200.0,0.000279,2]
[403933601,1769683847205,-210.83,0.00027966,2]
[403933602,1769683847214,-150.0,0.0002799,2]
[403933603,1769683847224,-150.0,0.0002799,2]
[403933604,1769683847233,-3664.25748133,0.0002799,2]
[403933605,1769683847247,-3250.39463706,0.0002799,2]
[403933606,1769683847256,-150.0,0.0002799,2]
[403933607,1769683847265,-26624.45753217,0.0002799,2]
[403933608,1769683847274,-712.04,0.00028,7]
[403933609,1769683847283,-4933.95418225,0.00028014,2]
[403933610,1769683847293,-56246.34582486,0.00028033,2]
[403933611,1769683847302,-9035.0,0.00028104,2]
[403933612,1769683847311,-401.19111454,0.00028129,2]
[403933613,1769683847321,-290.98464935,0.00028132,2]
[403933614,1769683847332,-804.17102365,0.00028132,2]
[403933615,1769683847342,-1000.0,0.00028144,2]
[403933616,1769683847352,-500.0,0.0002831,2]
[403933617,1769683847362,-6713.0,0.00028596,5]
[403933618,1769683847370,-153.46875156,0.00028912,2]
[403933619,1769683847379,-416.03518578,0.00029498,2]
[403933620,1769683847389,-5000.0,0.00029547,2]
[403933621,1769683847398,-1071.0,0.00029587,2]
[403933622,1769683847407,-3478.0,0.00029707,2]
[403933623,1769683847416,-1334.0,0.00029707,2]
[403933624,1769683847426,-567.0,0.00029707,2]
[403933625,1769683847436,-159.14442773,0.00029717,2]
[403933626,1769683847446,-200.0,0.00029927,2]
[403933627,1769683847455,-5000.0,0.00030148,2]
[403933628,1769683847465,-5000.0,0.00030148,2]
[403933629,1769683847474,-978.12,0.000305,14]
[403933630,1769683847484,-932.96515428,0.00030543,2]
[403933631,1769683847494,-827.73127659,0.00030543,2]
[403933632,1769683847503,-56246.34582486,0.00030566,2]
[403933633,1769683847513,-1000.0,0.0003059,2]
[403933634,1769683847522,-2303.4,0.000306,2]
[403933635,1769683847531,-2233.404198,0.000306,28]
[403933636,1769683847541,-2233.404198,0.000306,28]
[403933637,1769683847550,-2233.404198,0.000306,28]
[403933638,1769683847559,-2233.404198,0.000306,28]
[403933639,1769683847568,-741.45001561,0.00030635,2]
[403933640,1769683847578,-151.0,0.00030702,31]
[403933641,1769683847587,-151.0,0.00030702,31]
[403933642,1769683847596,-151.0,0.00030702,31]
[403933643,1769683847605,-287.993917,0.00030702,31]
[403933644,1769683847615,-229.609176,0.00030702,31]
[403933645,1769683847627,-1000.0,0.00030702,2]
[403933646,1769683847636,-431.42848765,0.00030867,2]
[403933647,1769683847644,-833.92535153,0.00030871,2]
[403933648,1769683847653,-7847.0,0.00030882,2]
[403933649,1769683847663,-500.0,0.00031113,2]
[403933650,1769683847672,-1000.0,0.00031255,7]
[403933651,1769683847682,-1000.0,0.00031528,7]
[403933652,1769683847692,-1000.0,0.00031648,7]
[403933653,1769683847702,-1740.76866062,0.00031819,2]
[403933654,1769683847711,-1071.0,0.00031871,2]
[403933655,1769683847721,-742.93304836,0.0003189,6]
[403933656,1769683847732,-712.04,0.000319,7]
[403933657,1769683847742,-4328.82544419,0.00031905,2]
[403933658,1769683847753,-1000.0,0.00031922,7]
[403933659,1769683847763,-200.65470547,0.00032046,120]
[403933660,1769683847773,-1000.0,0.00032196,7]
[403933661,1769683847783,-214.64940796,0.00032236,2]
[403933662,1769683847793,-1000.0,0.0003247,7]
[403933663,1769683847806,-1331.0,0.00032707,2]
[403933664,1769683847816,-1000.0,0.00032744,7]
[403933665,1769683847825,-500.0,0.00032877,2]
[403933666,1769683847834,-500.0,0.00032877,2]
[403933667,1769683847843,-500.0,0.00032877,2]
[403933668,1769683847852,-500.0,0.00032877,2]
[403933669,1769683847862,-500.0,0.00032877,2]
[403933670,1769683847872,-355.00624276,0.00032877,2]
[403933671,1769683847881,-500.0,0.00032877,7]
[403933672,1769683847891,-500.0,0.00032877,7]
[403933673,1769683847900,-500.0,0.00032877,7]
[403933674,1769683847910,-486.96,0.000329,14]
[403933675,1769683847919,-2295.81,0.000329,14]
[403933676,1769683847929,-5712.52,0.000329,2]
[403933677,1769683847939,-1000.0,0.00033018,7]
[403933678,1769683847948,-4933.95418225,0.00033072,2]
[403933679,1769683847958,-56246.34582486,0.000331,2]
[403933680,1769683847970,-1999.0,0.00033292,7]
[403933681,1769683847980,-524.0,0.000335,16]
[403933682,1769683847989,-864.78058953,0.0003361,2]
[403933683,1769683847999,-500.0,0.00033916,2]
[403933684,1769683848011,-1071.0,0.00034154,5]
[403933685,1769683848021,-741.45001561,0.0003488,2]
[403933686,1769683848030,-7700.0,0.000349,12]
[403933687,1769683848040,-3240.0,0.00035138,120]
[403933688,1769683848050,-157.05,0.00035336,2]
[403933689,1769683848060,-151.712915,0.00035389,31]
[403933690,1769683848070,-151.0,0.00035389,31]
[403933691,1769683848080,-210.894674,0.00035389,31]
[403933692,1769683848090,-151.0,0.00035389,31]
[403933693,1769683848099,-151.0,0.00035389,31]
[403933694,1769683848109,-151.0,0.00035389,31]
[403933695,1769683848119,-151.0,0.00035389,31]
[403933696,1769683848129,-152.459921,0.00035389,31]
[403933697,1769683848139,-151.0,0.00035389,31]
[403933698,1769683848148,-151.0,0.00035389,31]
[403933699,1769683848158,-300.541621,0.00035389,31]
[403933700,1769683848167,-300.541621,0.00035389,31]
[403933701,1769683848176,-300.541621,0.00035389,31]
[403933702,1769683848186,-300.541621,0.00035389,31]
[403933703,1769683848195,-502.1528189,0.00035616,7]
[403933704,1769683848205,-338.23,0.00035616,30]
[403933705,1769683848215,-600.0,0.00035616,2]
[403933706,1769683848225,-160.168884,0.00035627,31]
[403933707,1769683848235,-151.0,0.00035627,31]
[403933708,1769683848245,-56246.34582486,0.00035633,2]
[403933709,1769683848254,-4082.062,0.00035816,43]
[403933710,1769683848264,-261.002,0.00035816,43]
[403933711,1769683848273,-486.96,0.00036,14]
[403933712,1769683848282,-2295.81,0.00036,14]
[403933713,1769683848291,-5712.52,0.00036,2]
[403933714,1769683848301,-712.04,0.00036,14]
[403933715,1769683848311,-600.0,0.00036164,2]
[403933716,1769683848320,-896.77747135,0.00036349,2]
[403933717,1769683848330,-1071.0,0.00036437,7]
[403933718,1769683848340,-393.32,0.00036596,2]
[403933719,1769683848349,-600.0,0.00036712,2]
[403933720,1769683848359,-504.32915606,0.00036719,5]
[403933721,1769683848368,-932.96515428,0.00036865,9]
[403933722,1769683848377,-600.0,0.0003726,2]
[403933723,1769683848386,-163.0,0.0003766,11]
[403933724,1769683848395,-600.0,0.00037808,2]
[403933725,1769683848404,-151.0,0.00038044,31]
[403933726,1769683848414,-4933.95418225,0.00038129,2]
[403933727,1769683848423,-56246.34582486,0.00038167,2]
[403933728,1769683848433,-8828.91,0.00038356,120]
[403933729,1769683848444,-151.0,0.00038356,120]
[403933730,1769683848454,-151.0,0.00038356,120]
[403933731,1769683848463,-151.0,0.00038356,120]
[403933732,1769683848472,-151.0,0.00038356,120]
[403933733,1769683848482,-151.0,0.00038356,120]
[403933734,1769683848492,-151.0,0.00038356,30]
[403933735,1769683848502,-151.0,0.00038356,120]
[403933736,1769683848511,-234.371358,0.00038356,120]
[403933737,1769683848522,-234.371358,0.00038356,120]
[403933738,1769683848531,-151.0,0.00038356,120]
[403933739,1769683848541,-234.371358,0.00038356,120]
[403933740,1769683848551,-234.371358,0.00038356,120]
[403933741,1769683848560,-156.668929,0.00038356,120]
[403933742,1769683848569,-151.0,0.00038356,120]
[403933743,1769683848579,-151.0,0.00038356,120]
[403933744,1769683848588,-151.0,0.00038356,120]
[403933745,1769683848598,-151.0,0.00038356,120]
[403933746,1769683848607,-174.385296,0.00038356,120]
[403933747,1769683848616,-151.0,0.00038356,120]
[403933748,1769683848626,-151.0,0.00038356,120]
[403933749,1769683848635,-151.0,0.00038356,25]
[403933750,1769683848645,-151.0,0.00038356,25]
[403933751,1769683848655,-151.0,0.00038356,25]
[403933752,1769683848664,-151.0,0.00038356,120]
[403933753,1769683848673,-151.0,0.00038356,120]
[403933754,1769683848682,-151.0,0.00038356,120]
[403933755,1769683848692,-151.0,0.00038356,120]
[403933756,1769683848701,-151.0,0.00038356,120]
[403933757,1769683848710,-210.085941,0.00038356,120]
[403933758,1769683848719,-170.072591,0.00038356,120]
[403933759,1769683848728,-151.0,0.00038356,120]
[403933760,1769683848737,-151.0,0.00038356,120]
[403933761,1769683848747,-151.0,0.00038356,120]
[403933762,1769683848756,-151.0,0.00038356,120]
[403933763,1769683848765,-151.670714,0.00038356,120]
[403933764,1769683848776,-151.0,0.00038356,120]
[403933765,1769683848785,-151.0,0.00038356,120]
[403933766,1769683848794,-151.0,0.00038356,120]
[403933767,1769683848804,-151.0,0.00038356,120]
[403933768,1769683848813,-203.501362,0.00038356,120]
[403933769,1769683848823,-169.082924,0.00038356,15]
[403933770,1769683848832,-151.0,0.00038356,120]
[403933771,1769683848843,-169.082924,0.00038356,15]
[403933772,1769683848852,-151.0,0.00038356,120]
[403933773,1769683848862,-151.0,0.00038356,120]
[403933774,1769683848871,-169.082924,0.00038356,15]
[403933775,1769683848957,-151.0,0.00038356,120]
[403933776,1769683848971,-169.082924,0.00038356,15]
[403933777,1769683848980,-222.948508,0.00038356,120]
[403933778,1769683848991,-151.0,0.00038356,120]
[403933779,1769683849002,-222.948508,0.00038356,120]
[403933780,1769683849014,-151.0,0.00038356,120]
[403933781,1769683849023,-222.948508,0.00038356,120]
[403933782,1769683849034,-222.948508,0.00038356,120]
[403933783,1769683849044,-151.0,0.00038356,120]
[403933784,1769683849053,-151.0,0.00038356,120]
[403933785,1769683849062,-151.0,0.00038356,120]
[403933786,1769683849071,-151.0,0.00038356,120]
[403933787,1769683849080,-151.0,0.00038356,120]
[403933788,1769683849090,-151.0,0.00038356,120]
[403933789,1769683849100,-151.0,0.00038356,120]
[403933790,1769683849110,-151.0,0.00038356,120]
[403933791,1769683849119,-151.0,0.00038356,120]
[403933792,1769683849129,-158.475204,0.00038356,120]
[403933793,1769683849139,-151.0,0.00038356,120]
[403933794,1769683849148,-151.0,0.00038356,120]
[403933795,1769683849158,-151.0,0.00038356,120]
[403933796,1769683849168,-151.0,0.00038356,120]
[403933797,1769683849177,-151.0,0.00038356,120]
[403933798,1769683849187,-151.0,0.00038356,120]
[403933799,1769683849196,-151.0,0.00038356,120]
[403933800,1769683849205,-152.569656,0.00038356,120]
[403933801,1769683849214,-151.0,0.00038356,120]
[403933802,1769683849223,-249.045294,0.00038356,120]
[403933803,1769683849232,-249.045294,0.00038356,120]
[403933804,1769683849242,-151.0,0.00038356,90]
[403933805,1769683849251,-151.0,0.00038356,120]
[403933806,1769683849260,-249.045294,0.00038356,120]
[403933807,1769683849270,-249.045294,0.00038356,120]
[403933808,1769683849279,-151.0,0.00038356,120]
[403933809,1769683849288,-151.0,0.00038356,120]
[403933810,1769683849298,-151.0,0.00038356,120]
[403933811,1769683849307,-151.0,0.00038356,120]
[403933812,1769683849318,-151.0,0.00038356,120]
[403933813,1769683849327,-152.055666,0.00038356,120]
[403933814,1769683849337,-151.0,0.00038356,120]
[403933815,1769683849346,-151.0,0.00038356,120]
[403933816,1769683849355,-217.111004,0.00038356,120]
[403933817,1769683849364,-151.0,0.00038356,120]
[403933818,1769683849373,-217.111004,0.00038356,120]
[403933819,1769683849382,-217.111004,0.00038356,120]
[403933820,1769683849391,-600.0,0.00038356,2]
[403933821,1769683849400,-393.32,0.00038426,2]
[403933822,1769683849410,-500.0,0.00038518,30]
[403933823,1769683849419,-500.0,0.00038518,30]
[403933824,1769683849429,-500.0,0.00038518,30]
[403933825,1769683849439,-500.0,0.00038518,30]
[403933826,1769683849449,-729.72541227,0.00038518,30]
[403933827,1769683849460,-516.0,0.00038667,21]
[403933828,1769683849470,-1071.0,0.0003872,30]
[403933829,1769683849481,-5712.52,0.000388,30]
[403933830,1769683849492,-712.04,0.000388,14]
[403933831,1769683849503,-815.1,0.000389,30]
[403933832,1769683849512,-615.01473629,0.00038904,2]
[403933833,1769683849521,-2120.55,0.00039021,2]
[403933834,1769683849531,-929.95823779,0.00039088,2]
[403933835,1769683849542,-741.45001561,0.00039125,2]
[403933836,1769683849552,-150.19138809,0.00039194,7]
[403933837,1769683849562,-150.0,0.00039194,7]
[403933838,1769683849571,-150.0,0.00039194,7]
[403933839,1769683849580,-150.0,0.00039194,7]
[403933840,1769683849589,-150.27508154,0.00039194,7]
[403933841,1769683849598,-150.0,0.00039194,7]
[403933842,1769683849607,-150.0,0.00039194,7]
[403933843,1769683849616,-150.0,0.00039194,7]
[403933844,1769683849626,-150.0,0.00039194,7]
[403933845,1769683849635,-150.0,0.00039194,7]
[403933846,1769683849644,-150.0,0.00039194,7]
[403933847,1769683849656,-150.0,0.00039194,7]
[403933848,1769683849665,-150.0,0.00039194,7]
[403933849,1769683849674,-150.0,0.00039194,7]
[403933850,1769683849683,-150.0,0.00039194,7]
[403933851,1769683849693,-150.0,0.00039194,7]
[403933852,1769683849703,-150.0,0.00039194,7]
[403933853,1769683849713,-486.96,0.000392,14]
[403933854,1769683849724,-2295.81,0.000392,14]
[403933855,1769683849734,-150.0,0.00039239,7]
[403933856,1769683849744,-150.0,0.00039246,7]
[403933857,1769683849754,-150.0,0.00039283,7]
[403933858,1769683849763,-150.0,0.00039298,7]
[403933859,1769683849772,-150.0,0.00039319,7]
[403933860,1769683849781,-150.0,0.00039322,7]
[403933861,1769683849791,-150.0,0.00039322,7]
[403933862,1769683849799,-150.0,0.00039326,7]
[403933863,1769683849811,-150.0,0.00039327,7]
[403933864,1769683849820,-150.0,0.0003933,7]
[403933865,1769683849831,-150.0,0.0003935,7]
[403933866,1769683849841,-150.0,0.00039372,7]
[403933867,1769683849850,-150.0,0.00039401,7]
[403933868,1769683849861,-150.0,0.00039416,7]
[403933869,1769683849870,-150.0,0.00039443,7]
[403933870,1769683849889,-150.0,0.0003945,7]
[403933871,1769683849898,-150.0,0.0003945,7]
[403933872,1769683849907,-8828.91,0.00039452,120]
[403933873,1769683849916,-150.0,0.00039453,7]
[403933874,1769683849925,-150.0,0.00039458,7]
[403933875,1769683849935,-150.0,0.00039461,7]
[403933876,1769683849943,-150.0,0.00039466,7]
[403933877,1769683849954,-150.0,0.00039466,7]
[403933878,1769683849964,-150.0,0.00039505,7]
[403933879,1769683849976,-150.0,0.00039505,7]
[403933880,1769683849985,-150.0,0.0003955,7]
[403933881,1769683849993,-150.0,0.00039557,7]
[403933882,1769683850001,-150.0,0.00039567,7]
[403933883,1769683850014,-150.0,0.00039578,7]
[403933884,1769683850023,-150.0,0.00039578,7]
[403933885,1769683850032,-150.0,0.0003959,7]
[403933886,1769683850043,-150.0,0.00039594,7]
[403933887,1769683850052,-150.0,0.00039602,7]
[403933888,1769683850062,-150.0,0.00039609,7]
[403933889,1769683850071,-150.0,0.00039638,7]
[403933890,1769683850081,-150.0,0.00039661,7]
[403933891,1769683850090,-150.0,0.00039683,7]
[403933892,1769683850100,-150.0,0.00039692,7]
[403933893,1769683850109,-150.0,0.00039706,7]
[403933894,1769683850120,-150.0,0.00039706,7]
[403933895,1769683850129,-150.0,0.00039713,7]
[403933896,1769683850139,-150.0,0.00039722,7]
[403933897,1769683850148,-150.0,0.00039727,7]
[403933898,1769683850159,-150.0,0.00039738,7]
[403933899,1769683850177,-150.0,0.00039738,7]
[403933900,1769683850196,-150.0,0.00039764,7]
[403933901,1769683850218,-150.0,0.00039772,7]
[403933902,1769683850234,-9890.97262948,0.00039806,5]
[403933903,1769683850243,-150.0,0.00039816,7]
[403933904,1769683850253,-150.0,0.00039816,7]
[403933905,1769683850263,-150.0,0.00039816,7]
[403933906,1769683850273,-150.0,0.00039816,7]
[403933907,1769683850282,-150.0,0.00039835,7]
[403933908,1769683850291,-150.0,0.00039835,7]
[403933909,1769683850300,-150.0,0.00039854,7]